bitfinex/quotes_BTCUSD_20241003
["timestamp","ask_amount","ask_price","bid_price","bid_amount"]
[1727962589788,0.27983288,60502.0,60501.0,0.0002]
[1727962590259,0.28683288,60502.0,60501.0,0.0002]
[1727962590975,0.37983288,60502.0,60501.0,0.0002]
[1727962592214,0.38183288,60502.0,60501.0,0.0002]
[1727962592437,0.41782006,60502.0,60501.0,0.0002]
[1727962592926,0.42582006,60502.0,60501.0,0.0002]
[1727962593189,0.41782006,60502.0,60501.0,0.0002]
[1727962593436,0.72538171,60499.0,60498.0,0.000818]
[1727962593704,0.72538171,60499.0,60490.0,0.24993543]
[1727962593705,0.72540371,60491.0,60490.0,0.24993543]
[1727962593999,0.72540371,60491.0,60488.0,0.000818]
[1727962594000,0.290319,60489.0,60488.0,0.000818]
[1727962594228,0.662819,60489.0,60488.0,1e-06]
[1727962594456,0.662819,60489.0,60481.0,0.21989198]
[1727962594457,0.290338,60482.0,60481.0,0.21989198]
[1727962594712,0.72742871,60482.0,60481.0,0.19447325]
[1727962594972,1.14577078,60482.0,60481.0,0.19447325]
[1727962595209,0.86630478,60482.0,60481.0,0.19447325]
[1727962595465,0.288341,60481.0,60461.0,0.0002]
[1727962595707,0.165373,60469.0,60461.0,0.0002]
[1727962595958,0.7252492,60469.0,60461.0,0.0002]
[1727962596198,0.37816916,60469.0,60461.0,0.0002]
[1727962596449,0.37816916,60469.0,60468.0,0.000819]
[1727962596951,0.71525987,60469.0,60468.0,0.000819]
[1727962597468,0.82525987,60469.0,60468.0,0.000819]
[1727962597695,0.81525987,60469.0,60468.0,0.000819]
[1727962597945,0.82425987,60469.0,60468.0,0.000819]
[1727962598195,0.81525987,60469.0,60468.0,0.000819]
[1727962599188,1.120384,60465.0,60461.0,0.0002]
[1727962599418,0.72548371,60462.0,60461.0,0.0002]
[1727962599647,1.58220671,60462.0,60461.0,0.0002]
[1727962599925,1.58720671,60462.0,60461.0,0.0002]
[1727962600196,0.88867042,60462.0,60461.0,0.0002]
[1727962600464,0.265393,60462.0,60461.0,0.0002]
[1727962601662,0.279393,60462.0,60461.0,0.0002]
[1727962602369,0.302393,60462.0,60461.0,0.0002]
[1727962602884,0.288393,60462.0,60461.0,0.0002]
[1727962603107,0.46457971,60462.0,60461.0,0.0002]
[1727962603591,0.45157971,60462.0,60461.0,0.0002]
[1727962603820,0.46157971,60462.0,60461.0,0.0002]
[1727962604042,0.45157971,60462.0,60461.0,0.0002]
[1727962604265,0.46457971,60462.0,60461.0,0.0002]
[1727962604741,0.45157971,60462.0,60461.0,0.0002]
[1727962605239,0.45157971,60462.0,60461.0,0.0818]
[1727962605240,0.165393,60462.0,60461.0,0.0818]
[1727962605703,0.165393,60462.0,60461.0,0.00795708]
[1727962605930,0.175393,60462.0,60461.0,0.0002]
[1727962606385,0.288393,60462.0,60461.0,0.0002]
[1727962606905,0.297393,60462.0,60461.0,0.0002]
[1727962607133,0.45157971,60462.0,60461.0,0.001019]
[1727962607361,0.174393,60462.0,60461.0,0.001019]
[1727962607624,0.165393,60462.0,60461.0,0.00979465]
[1727962607871,0.165393,60462.0,60461.0,0.001019]
[1727962608100,0.007,60462.0,60461.0,0.00979465]
[1727962608329,0.007,60462.0,60461.0,0.001019]
[1727962608587,0.2061697,60462.0,60461.0,0.001019]
[1727962609077,0.3061697,60462.0,60461.0,0.001019]
[1727962609341,0.3221697,60462.0,60461.0,0.001019]
[1727962610049,0.2271697,60462.0,60461.0,0.001019]
[1727962610799,0.193393,60462.0,60461.0,0.001019]
[1727962611043,0.170393,60462.0,60461.0,0.001019]
[1727962611520,0.170393,60462.0,60461.0,0.0896241]
[1727962611521,0.005,60462.0,60461.0,0.0896241]
[1727962611781,0.005,60462.0,60461.0,0.080819]
[1727962611782,0.165393,60462.0,60461.0,0.080819]
[1727962612002,0.2480869,60462.0,60461.0,0.0896241]
[1727962612230,0.165393,60462.0,60461.0,0.0896241]
[1727962612913,0.165393,60462.0,60461.0,0.080819]
[1727962613148,0.175393,60462.0,60461.0,0.08964963]
[1727962613384,0.2590859,60462.0,60461.0,0.08964963]
[1727962613638,0.2590859,60462.0,60461.0,0.00984963]
[1727962613639,0.55643915,60462.0,60461.0,0.00984963]
[1727962613899,0.55643915,60462.0,60461.0,0.001019]
[1727962613900,0.58236702,60462.0,60461.0,0.001019]
[1727962614368,0.68236702,60462.0,60461.0,0.001019]
[1727962615075,0.69536702,60462.0,60461.0,0.001019]
[1727962615541,0.69736702,60462.0,60461.0,0.001019]
[1727962615773,0.69536702,60462.0,60461.0,0.001019]
[1727962616021,0.69736702,60462.0,60461.0,0.001019]
[1727962616258,0.68436702,60462.0,60461.0,0.001019]
[1727962616724,0.69836702,60462.0,60461.0,0.001019]
[1727962616969,0.68436702,60462.0,60461.0,0.001019]
[1727962617201,0.69636702,60462.0,60461.0,0.001019]
[1727962618172,0.30532087,60462.0,60461.0,0.001019]
[1727962619509,0.31432087,60462.0,60461.0,0.001019]
[1727962619512,0.19132087,60462.0,60461.0,0.001019]
[1727962619738,0.176393,60462.0,60461.0,0.00996231]
[1727962619969,0.2493495,60462.0,60461.0,0.00996231]
[1727962620197,0.2633495,60462.0,60461.0,0.00996231]
[1727962620426,0.2493495,60462.0,60461.0,0.00996231]
[1727962620882,0.2533495,60462.0,60461.0,0.00996231]
[1727962621108,0.2763495,60462.0,60461.0,0.00996231]
[1727962621339,0.3763495,60462.0,60461.0,0.00996231]
[1727962621596,0.3763495,60462.0,60461.0,0.001019]
[1727962622279,0.3783495,60462.0,60461.0,0.001019]
[1727962622506,0.3743495,60462.0,60461.0,0.001019]
[1727962622735,0.3743495,60462.0,60461.0,1e-06]
[1727962622981,0.123,60450.0,60441.0,0.25013543]
[1727962623251,0.57279825,60443.0,60441.0,0.25013543]
[1727962623709,0.57479825,60443.0,60441.0,0.0002]
[1727962624185,0.72929708,60443.0,60441.0,0.0002]
[1727962624689,0.72729708,60443.0,60441.0,0.0002]
[1727962624903,0.288445,60443.0,60441.0,0.0002]
[1727962625578,0.89048379,60443.0,60441.0,0.0002]
[1727962626038,0.90448379,60443.0,60441.0,0.0002]
[1727962626275,0.90648379,60443.0,60441.0,0.0002]
[1727962626750,0.92048379,60443.0,60441.0,0.0002]
[1727962626991,0.91842372,60443.0,60441.0,0.0002]
[1727962627229,0.90648379,60443.0,60441.0,0.0002]
[1727962627705,0.89248379,60443.0,60441.0,0.0002]
[1727962627938,0.90648379,60443.0,60441.0,0.0002]
[1727962628450,0.90648379,60443.0,60427.0,0.24993543]
[1727962628451,0.002,60441.0,60440.0,5e-07]
[1727962628706,0.29545,60441.0,60440.0,5e-07]
[1727962628948,0.64545,60441.0,60440.0,5e-07]
[1727962629185,0.64045,60441.0,60440.0,5e-07]
[1727962629433,0.7244065,60441.0,60440.0,5e-07]
[1727962629921,0.3744065,60441.0,60440.0,5e-07]
[1727962630154,0.3884065,60441.0,60440.0,5e-07]
[1727962630388,0.3794065,60441.0,60440.0,5e-07]
[1727962630626,0.72933808,60428.0,60427.0,0.24993543]
[1727962630896,1.57344916,60428.0,60427.0,0.24993543]
[1727962631159,1.57144916,60428.0,60427.0,0.24993543]
[1727962631402,0.123,60427.0,60420.0,0.24993543]
[1727962631641,0.023,60427.0,60420.0,0.24993543]
[1727962631876,0.023,60424.0,60422.0,0.0110041]
[1727962632112,0.34458171,60423.0,60422.0,0.0110041]
[1727962632346,0.34458171,60423.0,60419.0,0.000819]
[1727962632347,0.023,60422.0,60419.0,0.000819]
[1727962632843,1.075975,60428.0,60419.0,0.000819]
[1727962632844,0.745,60428.0,60419.0,0.000819]
[1727962633094,0.1,60427.0,60422.0,0.24993543]
[1727962633346,0.1,60427.0,60419.0,0.000819]
[1727962633347,0.165465,60436.0,60426.0,0.24993543]
[1727962633667,0.002,60450.0,60426.0,0.24993543]
[1727962633668,0.24993543,60435.0,60429.0,0.165482]
[1727962633897,0.478,60449.0,60429.0,0.330966]
[1727962634148,0.003636,60464.0,60440.0,0.1765]
[1727962634149,0.02593694,60444.0,60440.0,0.1765]
[1727962634387,0.745,60460.0,60441.0,0.01307465]
[1727962634388,0.9104,60460.0,60441.0,0.01307465]
[1727962634622,0.24993543,60452.0,60443.0,0.0793]
[1727962634848,0.02593259,60456.0,60443.0,0.0793]
[1727962635101,0.24993543,60452.0,60443.0,0.0793]
[1727962635336,0.165413,60455.0,60446.0,0.165436]
[1727962635581,0.165413,60455.0,60452.0,0.165419]
[1727962635582,0.03506952,60455.0,60452.0,0.165419]
[1727962635831,0.03506952,60455.0,60449.0,0.330855]
[1727962635832,0.02593259,60456.0,60449.0,0.49628]
[1727962636065,0.02593259,60456.0,60444.0,0.330884]
[1727962636298,0.02593259,60456.0,60447.0,0.24993543]
[1727962636556,0.02593259,60456.0,60455.0,0.165412]
[1727962636796,0.001636,60462.0,60455.0,0.1758]
[1727962637039,0.16486241,60456.0,60455.0,0.0765]
[1727962637291,0.165428,60449.0,60448.0,0.0765]
[1727962637541,0.330841,60452.0,60448.0,0.0765]
[1727962637542,0.165423,60451.0,60448.0,0.0765]
[1727962637772,0.10763928,60456.0,60448.0,0.0765]
[1727962637773,0.165428,60449.0,60448.0,0.0765]
[1727962638005,0.188428,60449.0,60448.0,0.0765]
[1727962638719,0.165428,60449.0,60448.0,0.0765]
[1727962638966,0.2403555,60449.0,60448.0,0.0765]
[1727962639279,0.2403555,60449.0,60439.0,0.0808]
[1727962639280,0.0749275,60449.0,60439.0,0.0808]
[1727962639508,0.0749275,60449.0,60436.0,0.24993543]
[1727962639509,0.353917,60438.0,60436.0,0.24993543]
[1727962639731,0.023,60437.0,60436.0,0.24993543]
[1727962639963,0.023,60437.0,60434.0,0.0945]
[1727962639964,0.0619358,60437.0,60434.0,0.0945]
[1727962640188,0.023,60447.0,60435.0,0.165466]
[1727962640427,0.023,60447.0,60438.0,0.165457]
[1727962640649,0.023,60449.0,60434.0,0.0945]
[1727962640882,0.012,60438.0,60434.0,0.0945]
[1727962641169,0.1,60450.0,60431.0,0.0808]
[1727962641170,0.023,60435.0,60431.0,0.0808]
[1727962641432,0.1,60443.0,60431.0,0.0808]
[1727962641433,0.165459,60438.0,60431.0,0.0808]
[1727962641654,0.2350998,60437.0,60431.0,0.0808]
[1727962641887,0.165467,60435.0,60431.0,0.0808]
[1727962642122,0.0696368,60437.0,60431.0,0.0808]
[1727962642594,0.023,60443.0,60431.0,0.0808]
[1727962642822,0.330877,60446.0,60434.0,0.165469]
[1727962642823,0.24993543,60440.0,60434.0,0.165469]
[1727962643047,0.165445,60443.0,60435.0,0.0941]
[1727962643531,0.24993543,60447.0,60435.0,0.0941]
[1727962643532,0.165453,60440.0,60435.0,0.0941]
[1727962643809,0.023,60442.0,60435.0,0.0941]
[1727962644040,0.330895,60442.0,60435.0,0.0941]
[1727962644255,0.09230884,60446.0,60435.0,0.0941]
[1727962644256,0.165461,60437.0,60435.0,0.0941]
[1727962644489,0.330907,60440.0,60435.0,0.0941]
[1727962644709,0.165462,60437.0,60435.0,0.0941]
[1727962644986,0.165464,60436.0,60435.0,0.0941]
[1727962645236,0.165462,60437.0,60435.0,0.0941]
[1727962645472,0.0496365,60437.0,60435.0,0.0941]
[1727962645692,0.165461,60437.0,60435.0,0.0941]
[1727962645911,0.005,60442.0,60435.0,0.0941]
[1727962645912,0.165451,60441.0,60435.0,0.0941]
[1727962646136,0.165458,60439.0,60435.0,0.0941]
[1727962646358,0.0501357,60438.0,60435.0,0.0941]
[1727962647697,0.2155947,60438.0,60435.0,0.0941]
[1727962648376,0.330923,60437.0,60435.0,0.0941]
[1727962648602,0.0501357,60438.0,60435.0,0.0941]
[1727962649026,0.11242493,60445.0,60435.0,0.0941]
[1727962649027,0.188464,60436.0,60435.0,0.0941]
[1727962649295,0.33092,60438.0,60435.0,0.0941]
[1727962649525,0.165461,60437.0,60435.0,0.0941]
[1727962649761,0.165464,60436.0,60435.0,0.0941]
[1727962649993,0.023,60439.0,60435.0,0.0941]
[1727962650226,0.023,60439.0,60431.0,0.081618]
[1727962650227,0.165475,60432.0,60431.0,0.081618]
[1727962650467,0.5730436,60432.0,60431.0,0.000818]
[1727962650938,0.188475,60432.0,60431.0,0.000818]
[1727962651180,0.4730436,60432.0,60431.0,0.000818]
[1727962651445,0.4740436,60432.0,60431.0,0.000818]
[1727962651678,0.61972956,60432.0,60431.0,0.000818]
[1727962652141,0.64567124,60432.0,60431.0,0.000818]
[1727962652609,0.74567124,60432.0,60431.0,0.000818]
[1727962652847,0.21441668,60432.0,60431.0,0.000818]
[1727962653110,0.21414481,60432.0,60431.0,0.000818]
[1727962653356,0.31414481,60432.0,60431.0,0.000818]
[1727962653829,0.22314481,60432.0,60431.0,0.000818]
[1727962654079,0.21414481,60432.0,60431.0,0.000818]
[1727962654333,0.48833152,60432.0,60431.0,0.000818]
[1727962654797,0.47733152,60432.0,60431.0,0.000818]
[1727962655035,0.48533152,60432.0,60431.0,0.000818]
[1727962655508,0.53453593,60432.0,60431.0,0.000818]
[1727962655973,0.45938984,60432.0,60431.0,0.000818]
[1727962656985,0.45138984,60432.0,60431.0,0.000818]
[1727962657255,0.52519646,60432.0,60431.0,0.000818]
[1727962657500,0.53919646,60432.0,60431.0,0.000818]
[1727962657750,0.54119646,60432.0,60431.0,0.000818]
[1727962658280,0.54119646,60432.0,60421.0,0.25013543]
[1727962658281,0.5500706,60422.0,60421.0,0.25013543]
[1727962658515,0.97178895,60422.0,60421.0,0.0002]
[1727962658786,1.0416372,60422.0,60407.0,0.24993543]
[1727962659076,0.265508,60420.0,60415.0,0.24993543]
[1727962659288,0.265508,60420.0,60401.0,0.0765]
[1727962659289,0.1,60408.0,60401.0,0.0002]
[1727962659536,0.265551,60404.0,60401.0,0.0002]
[1727962660047,0.5501256,60402.0,60401.0,0.0002]
[1727962660287,0.165595,60388.0,60381.0,0.0161355]
[1727962660520,1.3181636,60388.0,60381.0,0.0161355]
[1727962660752,1.3181636,60388.0,60387.0,0.0082019]
[1727962660985,1.3181636,60388.0,60387.0,0.000818]
[1727962661982,1.34412596,60388.0,60387.0,0.000818]
[1727962662224,0.78496236,60388.0,60387.0,0.000818]
[1727962662515,0.78496236,60388.0,60387.0,0.339416]
[1727962662516,0.014,60388.0,60387.0,0.339416]
[1727962662984,0.0259588,60397.0,60387.0,0.18159376]
[1727962663223,0.2845686,60408.0,60395.0,0.002]
[1727962663457,0.165569,60398.0,60395.0,0.002]
[1727962663713,0.331122,60401.0,60396.0,0.00769428]
[1727962663714,0.16556,60401.0,60396.0,0.00769428]
[1727962664317,0.331103,60405.0,60399.0,0.151564]
[1727962664318,0.331102,60405.0,60399.0,0.151564]
[1727962664602,0.165551,60405.0,60400.0,0.165561]
[1727962664817,0.06881333,60404.0,60403.0,0.002]
[1727962665049,0.02595426,60406.0,60405.0,0.167549]
[1727962665288,0.16553,60412.0,60408.0,0.16554]
[1727962665588,0.165521,60415.0,60414.0,0.002]
[1727962665806,0.165521,60415.0,60403.0,0.1688]
[1727962665807,0.330992,60425.0,60416.0,0.002]
[1727962666051,0.43905563,60427.0,60416.0,0.002]
[1727962666052,0.165512,60419.0,60416.0,0.002]
[1727962666337,0.331005,60423.0,60416.0,0.002]
[1727962666338,0.165514,60418.0,60417.0,0.00760472]
[1727962666623,0.44069163,60432.0,60422.0,0.331004]
[1727962666624,0.165481,60430.0,60422.0,0.331004]
[1727962666848,0.001636,60432.0,60426.0,0.165491]
[1727962666849,0.24993543,60427.0,60426.0,0.165491]
[1727962667069,0.24993543,60427.0,60425.0,0.330987]
[1727962667070,0.167111,60432.0,60431.0,0.002]
[1727962667297,0.167111,60432.0,60426.0,0.00750276]
[1727962667298,0.165488,60427.0,60426.0,0.00750276]
[1727962667534,0.165488,60427.0,60424.0,0.002]
[1727962667535,0.165494,60425.0,60424.0,0.002]
[1727962667795,0.330989,60425.0,60422.0,0.002]
[1727962668053,0.330989,60425.0,60422.0,0.01]
[1727962668054,0.165499,60423.0,60422.0,0.01]
[1727962668274,0.165499,60423.0,60422.0,0.002]
[1727962668996,0.02594271,60429.0,60422.0,0.002]
[1727962669267,0.001636,60432.0,60422.0,0.002]
[1727962669268,0.24993543,60428.0,60422.0,0.002]
[1727962669491,0.24993543,60430.0,60422.0,0.002]
[1727962669712,0.27509257,60430.0,60429.0,0.002]
[1727962670183,0.001636,60432.0,60431.0,0.002]
[1727962670412,0.167111,60432.0,60431.0,0.002]
[1727962672993,0.16656755,60432.0,60431.0,0.002]
[1727962674442,0.17256755,60432.0,60431.0,0.002]
[1727962674657,0.16656755,60432.0,60431.0,0.002]
[1727962674883,0.282504,60432.0,60431.0,0.002]
[1727962675353,0.305504,60432.0,60431.0,0.001]
[1727962675821,0.16656755,60432.0,60431.0,0.001]
[1727962676073,0.00109255,60432.0,60430.0,0.002]
[1727962676320,0.00109255,60432.0,60431.0,0.165477]
[1727962676528,0.00109255,60432.0,60431.0,0.17842637]
[1727962676762,0.00109255,60432.0,60431.0,0.25632637]
[1727962677279,0.00109255,60432.0,60431.0,0.09284937]
[1727962677512,0.00109255,60432.0,60431.0,0.25832637]
[1727962677769,0.165449,60442.0,60441.0,0.002]
[1727962677989,0.41538443,60442.0,60441.0,0.01293288]
[1727962678211,0.41538443,60442.0,60441.0,0.002]
[1727962678461,0.165449,60442.0,60441.0,0.002]
[1727962678932,0.2812579,60442.0,60441.0,0.002]
[1727962680139,0.165449,60442.0,60441.0,0.002]
[1727962680638,0.165449,60442.0,60441.0,0.008]
[1727962680938,0.165449,60442.0,60441.0,0.002]
[1727962681368,0.166449,60442.0,60441.0,0.002]
[1727962681859,0.330929,60436.0,60431.0,0.1761]
[1727962682080,0.165475,60432.0,60431.0,0.0779]
[1727962682591,0.165475,60432.0,60423.0,0.24993543]
[1727962682592,0.165497,60424.0,60423.0,0.24993543]
[1727962682828,0.165497,60424.0,60422.0,0.000818]
[1727962682829,0.72755463,60423.0,60422.0,0.000818]
[1727962683048,0.80975839,60423.0,60422.0,0.000818]
[1727962684026,0.80975839,60423.0,60397.0,0.094119]
[1727962684027,0.165538,60409.0,60397.0,0.000819]
[1727962684319,0.165538,60409.0,60397.0,0.25075443]
[1727962684320,0.265568,60398.0,60397.0,0.25075443]
[1727962684855,0.29152453,60398.0,60397.0,0.000819]
[1727962685070,1.03652453,60398.0,60397.0,0.000819]
[1727962685337,1.05952453,60398.0,60397.0,0.000819]
[1727962685566,0.165568,60398.0,60397.0,0.000819]
[1727962685802,0.165568,60398.0,60397.0,0.001819]
[1727962685803,0.006,60398.0,60397.0,0.001819]
[1727962686041,0.006,60398.0,60397.0,0.078319]
[1727962686281,0.006,60398.0,60397.0,0.077319]
[1727962686753,0.006,60398.0,60397.0,0.24289]
[1727962686990,0.006,60398.0,60397.0,0.077319]
[1727962687229,0.006,60398.0,60397.0,0.24489]
[1727962687779,0.165536,60410.0,60404.0,0.49865]
[1727962688013,0.331051,60414.0,60411.0,0.002]
[1727962688014,0.165532,60412.0,60411.0,0.002]
[1727962689454,0.168532,60412.0,60411.0,0.00961065]
[1727962689681,0.168532,60412.0,60411.0,0.002]
[1727962690890,0.168532,60412.0,60411.0,0.00961065]
[1727962691113,0.168532,60412.0,60411.0,0.002]
[1727962691589,0.331037,60417.0,60413.0,0.002]
[1727962691838,0.0166449,60441.0,60415.0,0.0944]
[1727962692078,0.001638,60442.0,60415.0,0.0944]
[1727962692079,0.165484,60429.0,60425.0,0.165494]
[1727962692331,0.02594583,60433.0,60423.0,0.43905563]
[1727962692572,0.19141883,60433.0,60429.0,0.165483]
[1727962692803,0.41539343,60438.0,60437.0,0.002]
[1727962693291,0.3725,60440.0,60437.0,0.002]
[1727962693540,0.330889,60444.0,60430.0,0.330958]
[1727962693541,0.167088,60442.0,60441.0,0.002]
[1727962694015,0.167088,60442.0,60438.0,0.0754]
[1727962694016,0.16545,60441.0,60440.0,0.002]
[1727962694246,0.16545,60441.0,60438.0,0.0754]
[1727962694247,0.165456,60439.0,60438.0,0.0754]
[1727962694487,0.165456,60439.0,60438.0,0.0774]
[1727962694947,0.165456,60439.0,60438.0,0.08629215]
[1727962695256,0.001638,60442.0,60438.0,0.0754]
[1727962695509,0.001638,60442.0,60441.0,0.16545]
[1727962696005,0.001638,60442.0,60441.0,0.01088721]
[1727962696006,0.497981,60442.0,60441.0,0.01088721]
[1727962696251,0.165456,60439.0,60438.0,0.0754]
[1727962696492,0.165456,60439.0,60438.0,0.0804]
[1727962696998,0.165456,60439.0,60438.0,0.0774]
[1727962697486,0.165477,60431.0,60430.0,0.002]
[1727962697728,0.330933,60436.0,60435.0,0.002]
[1727962697955,0.002638,60442.0,60427.0,0.0758]
[1727962697956,0.165461,60437.0,60436.0,0.002]
[1727962698691,0.165464,60436.0,60435.0,0.002]
[1727962698928,0.3805662,60436.0,60430.0,0.002]
[1727962699163,0.165477,60431.0,60430.0,0.002]
[1727962699396,0.330938,60435.0,60434.0,0.002]
[1727962699633,0.496405,60435.0,60434.0,0.002]
[1727962700180,0.165453,60440.0,60435.0,0.002]
[1727962700445,0.165462,60437.0,60435.0,0.002]
[1727962700693,0.165456,60439.0,60435.0,0.167465]
[1727962700944,0.165464,60436.0,60435.0,0.002]
[1727962701225,0.165467,60435.0,60434.0,0.002]
[1727962701755,0.188467,60435.0,60434.0,0.002]
[1727962702272,0.188467,60435.0,60421.0,0.24993543]
[1727962702273,0.165502,60422.0,60421.0,0.24993543]
[1727962702523,0.188502,60422.0,60421.0,0.24993543]
[1727962703044,0.188502,60422.0,60421.0,0.01082988]
[1727962703049,0.330962,60430.0,60416.0,0.0792]
[1727962703050,0.02594394,60425.0,60416.0,0.0792]
[1727962703305,0.02594394,60425.0,60416.0,0.244717]
[1727962703562,0.16553,60412.0,60411.0,0.000818]
[1727962703834,0.18853,60412.0,60411.0,0.000818]
[1727962704107,0.28853,60412.0,60411.0,0.000818]
[1727962704370,0.28853,60412.0,60397.0,0.000819]
[1727962704371,0.288568,60398.0,60397.0,0.000819]
[1727962704635,0.165568,60398.0,60397.0,0.000819]
[1727962705099,0.16318671,60412.0,60397.0,0.079919]
[1727962705335,0.165559,60402.0,60397.0,0.245488]
[1727962705579,0.331092,60407.0,60405.0,0.002]
[1727962705580,0.165547,60406.0,60405.0,0.002]
[1727962705811,0.24993543,60406.0,60405.0,0.002]
[1727962706081,0.24993543,60406.0,60397.0,0.079919]
[1727962706082,0.165554,60403.0,60402.0,0.002]
[1727962706552,0.331097,60406.0,60399.0,0.002]
[1727962706553,0.165562,60400.0,60399.0,0.002]
[1727962707779,0.165562,60400.0,60398.0,0.000819]
[1727962707780,0.188565,60399.0,60398.0,0.000819]
[1727962708029,0.165565,60399.0,60398.0,0.000819]
[1727962708271,0.07357249,60424.0,60398.0,0.000819]
[1727962708512,0.09809666,60428.0,60398.0,0.000819]
[1727962708513,0.16555,60405.0,60402.0,0.002]
[1727962708770,0.331072,60410.0,60402.0,0.002]
[1727962709015,0.001,60403.0,60402.0,0.167557]
[1727962709274,0.001,60403.0,60400.0,0.331125]
[1727962709275,0.331072,60410.0,60409.0,0.002]
[1727962709533,0.165523,60415.0,60414.0,0.002]
[1727962709767,0.1176003,60419.0,60417.0,0.002]
[1727962710030,0.496524,60420.0,60419.0,0.002]
[1727962710260,0.02594889,60425.0,60419.0,0.002]
[1727962710549,0.165504,60422.0,60419.0,0.002]
[1727962710759,0.165498,60424.0,60419.0,0.002]
[1727962710993,0.1655,60423.0,60419.0,0.002]
[1727962711226,0.02594889,60425.0,60419.0,0.002]
[1727962711715,0.1655,60423.0,60419.0,0.002]
[1727962711946,0.19144489,60425.0,60424.0,0.002]
[1727962712413,0.19144489,60425.0,60417.0,0.331028]
[1727962712414,0.330964,60430.0,60426.0,0.002]
[1727962712661,0.165488,60427.0,60426.0,0.002]
[1727962712892,0.165486,60428.0,60427.0,0.002]
[1727962713139,0.165486,60428.0,60421.0,0.421406]
[1727962713140,0.165497,60424.0,60423.0,0.002]
[1727962713374,0.165497,60424.0,60420.0,0.002]
[1727962713375,0.165505,60421.0,60420.0,0.002]
[1727962713857,0.330957,60431.0,60415.0,0.002]
[1727962713858,0.165519,60416.0,60415.0,0.002]
[1727962714084,0.123,60430.0,60414.0,0.002]
[1727962714085,0.165521,60415.0,60414.0,0.002]
[1727962714802,0.165524,60414.0,60413.0,0.0833]
[1727962715295,0.02594578,60415.0,60413.0,0.0833]
[1727962715562,0.165524,60414.0,60413.0,0.0833]
[1727962716747,0.165524,60414.0,60413.0,0.0893]
[1727962716983,0.165524,60414.0,60413.0,0.0833]
[1727962717219,0.166524,60414.0,60413.0,0.0833]
[1727962718460,0.165524,60414.0,60413.0,0.0833]
[1727962718709,0.25087842,60414.0,60413.0,0.0833]
[1727962718957,0.25087842,60414.0,60405.0,0.002]
[1727962718958,0.165546,60406.0,60405.0,0.002]
[1727962719967,0.08535442,60414.0,60397.0,0.092219]
[1727962719968,0.188565,60399.0,60397.0,0.000819]
[1727962720239,0.74647713,60399.0,60397.0,0.000819]
[1727962721496,0.33337981,60399.0,60397.0,0.000819]
[1727962721762,0.31452331,60399.0,60397.0,0.000819]
[1727962722282,0.75357894,60399.0,60397.0,0.000819]
[1727962722526,0.75457894,60399.0,60398.0,0.001819]
[1727962722755,0.75457894,60399.0,60387.0,0.000818]
[1727962722756,0.288595,60388.0,60387.0,0.000818]
[1727962723462,0.31455617,60388.0,60387.0,0.000818]
[1727962724686,0.7536118,60388.0,60387.0,0.000818]
[1727962725944,0.289595,60388.0,60387.0,0.001818]
[1727962726519,0.288595,60388.0,60387.0,0.000818]
[1727962726984,0.288595,60388.0,60387.0,0.001818]
[1727962726985,0.290595,60388.0,60387.0,0.001818]
[1727962727251,0.288595,60388.0,60387.0,0.000818]
[1727962727481,0.4168081,60388.0,60387.0,0.000818]
[1727962728176,0.3938081,60388.0,60387.0,0.000818]
[1727962728690,0.3938081,60388.0,60387.0,0.001818]
[1727962728691,0.4028081,60388.0,60387.0,0.001818]
[1727962728926,0.3938081,60388.0,60387.0,0.000818]
[1727962729167,0.4058081,60388.0,60387.0,0.000818]
[1727962729397,0.86786373,60388.0,60387.0,0.000818]
[1727962729626,0.4168081,60388.0,60387.0,0.000818]
[1727962729891,0.4248081,60388.0,60387.0,0.000818]
[1727962730133,0.19155606,60388.0,60387.0,0.000818]
[1727962730589,0.20355606,60388.0,60387.0,0.000818]
[1727962731525,0.20355606,60388.0,60387.0,0.079118]
[1727962731526,0.03796106,60388.0,60387.0,0.079118]
[1727962731768,0.165583,60393.0,60389.0,0.165592]
[1727962731997,0.04450269,60424.0,60387.0,0.079118]
[1727962731998,0.002,60388.0,60387.0,0.244715]
[1727962732254,0.02595728,60399.0,60387.0,0.079118]
[1727962732511,0.24993543,60395.0,60387.0,0.079118]
[1727962732731,0.24993543,60395.0,60389.0,0.331185]
[1727962732962,0.24993543,60395.0,60388.0,0.00761984]
[1727962732963,0.165593,60389.0,60388.0,0.00761984]
[1727962733205,0.165595,60388.0,60387.0,0.081118]
[1727962733469,0.165595,60388.0,60387.0,0.095118]
[1727962733470,0.166595,60388.0,60387.0,0.095118]
[1727962733701,0.165591,60390.0,60387.0,0.081118]
[1727962733931,0.165591,60390.0,60389.0,0.002]
[1727962734161,0.001638,60397.0,60395.0,0.002]
[1727962734409,0.001638,60397.0,60396.0,0.165573]
[1727962734913,0.001638,60397.0,60395.0,0.002]
[1727962734914,0.2170416,60397.0,60395.0,0.002]
[1727962735152,0.0514696,60397.0,60395.0,0.002]
[1727962735391,0.165573,60396.0,60395.0,0.002]
[1727962735617,0.2170406,60397.0,60395.0,0.002]
[1727962735857,0.2180406,60397.0,60396.0,0.008]
[1727962736143,0.165573,60396.0,60395.0,0.002]
[1727962736402,0.165579,60394.0,60393.0,0.002]
[1727962736886,0.165579,60394.0,60392.0,0.002]
[1727962736887,0.165582,60393.0,60392.0,0.002]
[1727962737117,0.2816502,60393.0,60392.0,0.002]
[1727962738089,0.2816502,60393.0,60381.0,0.2796495]
[1727962738090,0.165595,60388.0,60387.0,0.000818]
[1727962738763,0.165595,60388.0,60387.0,0.0091226]
[1727962739257,0.188595,60388.0,60387.0,0.000818]
[1727962739488,0.34920392,60388.0,60387.0,0.000818]